fUST/lending_fUST_20251114
["ID","MTS","AMOUNT","RATE_DAILY","PERIOD"]
[393929650,1763101852364,-1191.94,0.00039923,2]
[393929651,1763101852375,-1191.94,0.00039923,2]
[393929652,1763101852383,-1191.94,0.00039923,2]
[393929653,1763101852395,-1191.94,0.00039923,2]
[393929654,1763101852405,-1191.94,0.00039923,2]
[393929655,1763101852414,-1191.94,0.00039923,2]
[393929656,1763101852424,-1191.94,0.00039923,2]
[393929657,1763101852433,-1191.94,0.00039923,2]
[393929658,1763101852443,-1191.97188038,0.00039923,2]
[393929659,1763101852452,-250.0,0.00039923,10]
[393929660,1763101852461,-250.0,0.00039923,10]
[393929661,1763101852470,-250.0,0.00039923,10]
[393929662,1763101852479,-456.491729,0.00039923,10]
[393929663,1763101852488,-2813.39,0.00039923,3]
[393929664,1763101852497,-2813.39,0.00039923,3]
[393929665,1763101852507,-2813.39,0.00039923,3]
[393929666,1763101852515,-2813.39,0.00039923,3]
[393929667,1763101852526,-2813.39,0.00039923,3]
[393929668,1763101852535,-2813.39,0.00039923,3]
[393929669,1763101852544,-2813.39,0.00039923,3]
[393929670,1763101852557,-2813.39,0.00039923,3]
[393929671,1763101852567,-2813.39,0.00039923,3]
[393929672,1763101852575,-2813.39,0.00039923,3]
[393929673,1763101852585,-2813.39,0.00039923,3]
[393929674,1763101852594,-2813.39,0.00039923,3]
[393929675,1763101852603,-2813.39,0.00039923,3]
[393929676,1763101852612,-2813.39,0.00039923,3]
[393929677,1763101852621,-2813.39,0.00039923,3]
[393929678,1763101852630,-2813.39,0.00039923,3]
[393929679,1763101852640,-2813.39,0.00039923,3]
[393929680,1763101852650,-2813.39,0.00039923,3]
[393929681,1763101852659,-2813.39,0.00039923,3]
[393929682,1763101852668,-2813.39,0.00039923,3]
[393929683,1763101852677,-2813.39,0.00039923,3]
[393929684,1763101852686,-2813.39,0.00039923,3]
[393929685,1763101852695,-2813.39,0.00039923,3]
[393929686,1763101852704,-2813.49019422,0.00039923,3]
[393929687,1763101852713,-587.35152217,0.00039923,7]
[393929688,1763101852723,-500.0,0.00039923,2]
[393929689,1763101852731,-500.0,0.00039923,2]
[393929690,1763101852740,-500.0,0.00039923,2]
[393929691,1763101852749,-500.0,0.00039923,2]
[393929692,1763101852758,-500.0,0.00039923,2]
[393929693,1763101852767,-500.0,0.00039923,2]
[393929694,1763101852776,-500.0,0.00039923,2]
[393929695,1763101852786,-500.0,0.00039923,2]
[393929696,1763101852795,-500.0,0.00039923,2]
[393929697,1763101852804,-500.0,0.00039923,2]
[393929698,1763101852813,-502.24601816,0.00039923,2]
[393929699,1763101852822,-151.0,0.00039924,120]
[393929700,1763101852831,-151.0,0.00039924,120]
[393929701,1763101852841,-151.0,0.00039924,120]
[393929702,1763101852850,-221.74457,0.00039924,120]
[393929703,1763101852859,-500.0,0.0003993,15]
[393929704,1763101852869,-450.8,0.0003993,30]
[393929705,1763101852878,-150.4,0.00039936,120]
[393929706,1763101852889,-200.0,0.00039973,5]
[393929707,1763101852898,-3015.43081872,0.0003999,3]
[393929708,1763101852907,-180.94575144,0.0004,20]
[393929709,1763101852917,-650.0,0.0004,60]
[393929710,1763101852926,-1200.13868427,0.0004,2]
[393929711,1763101852935,-500.0,0.0004,2]
[393929712,1763101852944,-41062.89390565,0.0004,120]
[393929713,1763101857334,428.90108122,0.00039923,20]
[393929714,1763101873036,1676.94,0.00039923,20]
[393929715,1763101873285,1676.94,0.00039923,20]
[393929716,1763101873546,1676.94,0.00039923,20]
[393929717,1763101873802,1676.94,0.00039923,20]
[393929718,1763101874104,1676.94,0.00039923,20]
[393929719,1763101874349,1676.94,0.00039923,20]
[393929720,1763101874598,1676.94,0.00039923,20]
[393929721,1763101874855,1676.94,0.00039923,20]
[393929722,1763101875084,1676.94,0.00039923,20]
[393929723,1763101875332,1676.94,0.00039923,20]
[393929724,1763101875578,1676.94,0.00039923,20]
[393929725,1763101875818,1676.94,0.00039923,20]
[393929726,1763101876075,1676.94,0.00039923,20]
[393929727,1763101876335,1676.94,0.00039923,20]
[393929728,1763101876598,1676.94,0.00039923,20]
[393929729,1763101876855,1676.94,0.00039923,20]
[393929730,1763101877111,1676.94,0.00039923,20]
[393929731,1763101877383,1676.94,0.00039923,20]
[393929732,1763101877599,1676.94,0.00039923,20]
[393929734,1763101877840,1676.94,0.00039923,20]
[393929735,1763101878094,1676.94,0.00039923,20]
[393929736,1763101878337,1676.94,0.00039923,20]
[393929737,1763101878600,1676.94,0.00039923,20]
[393929740,1763101878862,1676.94,0.00039923,20]
[393929772,1763101930009,367.74024232,0.00039923,20]
[393929779,1763101934080,500.0,0.00039923,20]
[393929782,1763101934330,500.0,0.00039923,20]
[393929785,1763101934584,500.0,0.00039923,20]
[393929787,1763101934849,500.0,0.00039923,20]
[393929788,1763101935166,500.0,0.00039923,20]
[393929789,1763101935373,500.0,0.00039923,20]
[393929791,1763101935601,500.0,0.00039923,20]
[393929792,1763101935832,500.0,0.00039923,20]
[393929793,1763101936069,500.0,0.00039923,20]
[393929794,1763101936339,500.0,0.00039923,20]
[393929795,1763101936592,500.0,0.00039923,20]
[393929796,1763101936855,500.0,0.00039923,20]
[393929797,1763101937114,500.0,0.00039923,20]
[393929798,1763101937381,500.0,0.00039923,20]
[393929800,1763101937615,500.0,0.00039923,20]
[393929801,1763101937903,500.0,0.00039923,20]
[393929802,1763101938145,500.0,0.00039923,20]
[393929803,1763101938400,482.25964469,0.00039923,20]
[393929816,1763101942745,302.84316289,0.00039923,20]
[393929823,1763101963859,471.04934423,0.00039923,20]
[393929829,1763101978087,389.02965532,0.00039923,20]
[393929833,1763101986514,495.97064784,0.00039923,20]
[393929836,1763101990324,373.18572007,0.00039923,20]
[393929837,1763101990861,424.98457099,0.00039923,20]
[393929843,1763101998154,399.71779314,0.00039923,20]
[393929844,1763102000990,500.0,0.00039923,20]
[393929845,1763102004287,500.0,0.00039923,20]
[393929846,1763102004481,500.0,0.00039923,20]
[393929847,1763102004724,615.00885838,0.00039923,20]
[393929858,1763102011102,354.11441804,0.00039923,20]
[393929861,1763102011602,430.67816842,0.00039923,20]
[393929862,1763102018013,427.14553794,0.00039625,20]
[393929863,1763102018594,195.50483996,0.00039625,20]
[393929864,1763102018818,376.85718314,0.00039625,20]
[393929865,1763102020659,306.30599148,0.00039625,20]
[393929866,1763102022489,222.39476655,0.00039625,20]
[393929867,1763102022886,462.05966125,0.00039625,20]
[393929868,1763102023186,355.03356169,0.00039625,20]
[393929869,1763102024289,323.78841583,0.00039625,20]
[393929871,1763102026595,393.53704089,0.00039625,20]
[393929872,1763102035553,426.97084108,0.00039625,20]
[393929873,1763102036031,263.53424056,0.00039625,20]
[393929874,1763102038481,179.05371251,0.00039625,20]
[393929875,1763102040357,265.70992633,0.00039625,20]
[393929876,1763102042476,413.21566094,0.00039625,20]
[393929888,1763102048973,274.50386032,0.00039625,20]
[393929889,1763102052889,375.79113281,0.00039625,20]
[393929890,1763102053431,276.6983946,0.00039625,20]
[393929891,1763102055302,421.98556783,0.00039625,20]
[393929892,1763102065596,185.92458736,0.00039625,20]
[393929893,1763102067281,407.29030678,0.00039625,20]
[393929894,1763102069256,441.79085967,0.00039625,20]
[393929895,1763102074104,231.47779029,0.00039625,20]
[393929906,1763102079299,313.96039456,0.00039625,20]
[393929928,1763102101783,500.0,0.00039625,20]
[393929929,1763102102028,500.0,0.00039625,20]
[393929930,1763102102277,500.0,0.00039625,20]
[393929931,1763102102561,500.0,0.00039625,20]
[393929932,1763102102908,500.0,0.00039625,20]
[393929933,1763102103097,500.0,0.00039625,20]
[393929934,1763102103354,500.0,0.00039625,20]
[393929935,1763102103582,500.0,0.00039625,20]
[393929936,1763102104009,500.0,0.00039625,20]
[393929937,1763102104285,500.0,0.00039625,20]
[393929943,1763102104588,500.0,0.00039625,20]
[393929945,1763102104819,500.0,0.00039625,20]
[393929946,1763102105097,483.61335246,0.00039625,20]
[393929953,1763102105975,570.51,0.00039625,30]
[393929955,1763102112890,480.75383534,0.00039625,20]
[393929997,1763102157532,371.98983744,0.00039625,20]
[393929998,1763102162574,300.86721482,0.00039625,20]
[393929999,1763102164830,231.75298192,0.00039625,20]
[393930003,1763102221802,380.24210283,0.00039625,20]
[393930004,1763102223757,364.73543644,0.00039625,20]
[393930005,1763102227210,500.0,0.00039625,20]
[393930006,1763102227425,414.17343461,0.00039625,20]
[393930039,1763102261326,257.97748593,0.00039625,20]
[393930061,1763102273171,500.0,0.00039625,20]
[393930063,1763102273379,500.0,0.00039625,20]
[393930064,1763102273621,500.0,0.00039625,20]
[393930065,1763102273877,500.0,0.00039625,20]
[393930066,1763102274129,500.0,0.00039625,20]
[393930067,1763102274358,442.7583678,0.00039625,20]
[393930068,1763102274413,500.0,0.00039625,20]
[393930069,1763102274611,500.0,0.00039625,20]
[393930070,1763102274850,500.0,0.00039625,20]
[393930071,1763102275272,239.38901312,0.00039625,20]
[393930090,1763102340875,266.14931417,0.00039625,20]
[393930094,1763102382561,168.53,0.0003288,120]
[393930105,1763102416828,342.65539098,0.00039625,20]
[393930109,1763102418703,376.53497356,0.00039625,20]
[393930121,1763102426324,224.91821198,0.00039625,20]
[393930125,1763102428305,500.0,0.00039625,20]
[393930127,1763102428554,500.0,0.00039625,20]
[393930128,1763102428794,500.0,0.00039625,20]
[393930129,1763102429036,500.0,0.00039625,20]
[393930130,1763102429294,421.49787116,0.00039625,20]
[393930137,1763102437123,346.48237819,0.00039625,20]
[393930239,1763102525421,500.0,0.00039625,20]
[393930240,1763102525687,500.0,0.00039625,20]
[393930241,1763102525962,457.63240752,0.00039625,20]
[393930242,1763102547040,502.40611689,0.00039625,20]
[393930302,1763102783065,234.35965332,0.00039625,20]
[393930303,1763102786377,256.90610912,0.00039625,20]
[393930319,1763102788195,180.03663845,0.00039625,20]
[393930320,1763102794771,460.0,0.00039625,20]
[393930324,1763102835557,-150.0,0.00025288,2]
[393930325,1763102835587,-645.45430469,0.00026103,2]
[393930326,1763102835619,-1200.0,0.00026967,2]
[393930327,1763102835648,-300.0,0.00026967,2]
[393930328,1763102835682,-300.0,0.00026967,2]
[393930329,1763102835784,-4809.10139062,0.00026968,2]
[393930330,1763102835839,434.49139621,0.00039625,20]
[393930331,1763102835872,-780.12927342,0.00026968,2]
[393930332,1763102835895,-8439.75145316,0.00026968,2]
[393930333,1763102838594,-300.0,0.00026968,30]
[393930334,1763102838625,-300.0,0.00026968,30]
[393930335,1763102838656,-300.0,0.00026968,30]
[393930336,1763102838691,-300.0,0.00026968,30]
[393930337,1763102838724,-300.0,0.00026968,30]
[393930338,1763102838756,-300.0,0.00026968,30]
[393930339,1763102838788,-300.0,0.00026968,30]
[393930340,1763102838819,-300.0,0.00026968,30]
[393930341,1763102838952,-300.0,0.00026968,30]
[393930342,1763102838984,-300.0,0.00026968,30]
[393930343,1763102839015,-300.0,0.00026968,30]
[393930344,1763102839046,-300.0,0.00026968,30]
[393930345,1763102839077,-300.0,0.00026968,30]
[393930346,1763102839106,-300.0,0.00026968,30]
[393930347,1763102839138,-300.0,0.00026968,30]
[393930348,1763102839170,-400.01,0.00026968,30]
[393930349,1763102839412,-199.99,0.00026968,30]
[393930354,1763102842444,188.1602175,0.00039625,20]
[393930377,1763102855136,234.72023221,0.00039625,20]
[393930378,1763102857305,299.39721487,0.00039625,20]
[393930379,1763102859294,500.0,0.00039625,20]
[393930380,1763102859537,500.0,0.00039625,20]
[393930381,1763102859796,500.0,0.00039625,20]
[393930382,1763102860060,500.0,0.00039625,20]
[393930383,1763102860343,500.0,0.00039625,20]
[393930384,1763102860620,500.0,0.00039625,20]
[393930385,1763102860851,500.0,0.00039625,20]
[393930386,1763102861101,500.0,0.00039625,20]
[393930387,1763102861349,500.0,0.00039625,20]
[393930388,1763102861602,500.0,0.00039625,20]
[393930389,1763102862560,238.09949684,0.00039625,20]
[393930390,1763102867795,480.0,0.00039625,20]
[393930391,1763102869985,500.0,0.00039625,20]
[393930392,1763102870277,505.47226155,0.00039625,20]
[393930393,1763102876537,480.0,0.00039625,20]
[393930394,1763102878507,500.0,0.00039625,20]
[393930395,1763102881960,500.0,0.00039625,20]
[393930396,1763102882198,500.0,0.00039625,20]
[393930397,1763102882442,500.0,0.00039625,20]
[393930398,1763102882700,500.0,0.00039625,20]
[393930399,1763102884821,506.48331757,0.00039625,20]
[393930400,1763102886056,500.0,0.00039625,20]
[393930401,1763102886325,500.0,0.00039625,20]
[393930402,1763102886625,500.0,0.00039625,20]
[393930403,1763102886684,506.13582947,0.00039625,20]
[393930404,1763102886812,500.0,0.00039625,20]
[393930405,1763102887065,500.0,0.00039625,20]
[393930406,1763102894259,500.0,0.00039625,20]
[393930413,1763102897725,512.13168157,0.00039625,20]
[393930416,1763102904690,509.08484105,0.00039625,20]
[393930417,1763102907033,500.0,0.00039625,20]
[393930419,1763102912468,500.0,0.00039625,20]
[393930420,1763102912777,273.98828146,0.00039625,20]
[393930421,1763102914900,500.0,0.00039625,20]
[393930424,1763102916003,185.02714236,0.00039625,20]
[393930425,1763102919344,367.95979513,0.00039625,20]
[393930427,1763102921540,495.7816104,0.00039625,20]
[393930430,1763102928761,500.0,0.00039625,20]
[393930431,1763102928818,225.42881327,0.00039625,20]
[393930433,1763102934170,213.93465154,0.00039625,20]
[393930437,1763102938679,500.0,0.00039625,20]
[393930438,1763102939027,452.88685161,0.00039625,20]
[393930442,1763102946528,275.47633945,0.00039625,20]
[393930445,1763102950066,408.19134974,0.00039625,20]
[393930446,1763102950192,500.0,0.00039625,20]
[393930451,1763102958413,500.0,0.00039625,20]
[393930453,1763102959643,500.0,0.00039625,20]
[393930455,1763102964743,500.0,0.00039625,20]
[393930457,1763102969909,500.0,0.00039625,20]
[393930459,1763102972180,500.0,0.00039625,20]
[393930461,1763102975268,500.0,0.00039625,20]
[393930463,1763102980943,500.0,0.00039625,20]
[393930464,1763102981009,500.0,0.00039625,20]
[393930465,1763102981276,248.46,0.00039625,20]
[393930467,1763102983216,500.0,0.00039625,20]
[393930468,1763102983786,500.0,0.00039625,20]
[393930470,1763102986213,500.0,0.00039625,20]
[393930471,1763102988086,582.33519418,0.00039625,20]
[393930472,1763102989547,500.0,0.00039625,20]
[393930473,1763102989747,500.0,0.00039625,20]
[393930474,1763102989979,500.0,0.00039625,20]
[393930475,1763102990034,500.0,0.00039625,20]
[393930476,1763102990233,500.0,0.00039625,20]
[393930477,1763102990476,500.0,0.00039625,20]
[393930478,1763102990720,500.0,0.00039625,20]
[393930479,1763102990951,500.0,0.00039625,20]
[393930480,1763102991225,166.66,0.00039625,20]
[393930481,1763102994939,500.0,0.00039625,20]
[393930482,1763103010924,500.0,0.00039625,20]
[393930483,1763103011186,500.0,0.00039625,20]
[393930484,1763103011422,500.0,0.00039625,20]
[393930485,1763103011727,500.0,0.00039625,20]
[393930486,1763103011924,500.0,0.00039625,20]
[393930487,1763103012161,500.0,0.00039625,20]
[393930488,1763103012404,324.0392575,0.00039625,20]
[393930489,1763103014856,519.45022174,0.00039625,20]
[393930490,1763103014920,500.0,0.00039625,20]
[393930491,1763103015156,500.0,0.00039625,20]
[393930492,1763103015305,151.0,0.00039625,30]
[393930493,1763103015391,500.0,0.00039625,20]
[393930494,1763103015676,500.0,0.00039625,20]
[393930495,1763103015927,151.0,0.00039625,30]
[393930496,1763103015989,500.0,0.00039625,20]
[393930497,1763103016322,500.0,0.00039625,20]
[393930498,1763103016444,500.0,0.00039625,20]
[393930499,1763103016690,500.0,0.00039625,20]
[393930500,1763103016931,500.0,0.00039625,20]
[393930501,1763103017196,500.0,0.00039625,20]
[393930502,1763103017431,500.0,0.00039625,20]
[393930503,1763103017706,500.0,0.00039625,20]
[393930504,1763103017981,500.0,0.00039625,20]
[393930505,1763103018241,500.0,0.00039625,20]
[393930506,1763103018497,500.0,0.00039625,20]
[393930507,1763103018784,238.2577154,0.00039625,20]
[393930580,1763103032378,-150.0,0.0002589,2]
[393930581,1763103032388,-177.0,0.0002789,2]
[393930582,1763103032397,-150.0,0.00029228,2]
[393930583,1763103032405,-169.53720204,0.00029534,14]
[393930584,1763103032414,-793.0,0.00029663,2]
[393930585,1763103032423,-204.0,0.0002989,2]
[393930586,1763103032432,-200.0,0.00029918,15]
[393930587,1763103032440,-168.0,0.00029978,2]
[393930588,1763103032450,-761.12449072,0.0003,2]
[393930589,1763103032460,-372.81604331,0.00030518,2]
[393930590,1763103032469,-202.0,0.00030598,2]
[393930591,1763103032478,-400.0,0.00030598,2]
[393930593,1763103032487,-1600.0,0.00030598,2]
[393930594,1763103032496,-300.0,0.00030599,30]
[393930596,1763103032505,-300.0,0.00030599,30]
[393930598,1763103032514,-300.0,0.00030599,30]
[393930600,1763103032524,-300.0,0.00030599,30]
[393930602,1763103032533,-300.0,0.00030599,30]
[393930604,1763103032542,-300.0,0.00030599,30]
[393930606,1763103032552,-300.0,0.00030599,30]
[393930608,1763103032561,-300.0,0.00030599,30]
[393930610,1763103032570,-300.0,0.00030599,30]
[393930612,1763103032579,-300.0,0.00030599,30]
[393930614,1763103032588,-300.0,0.00030599,30]
[393930616,1763103032602,-300.0,0.00030599,30]
[393930617,1763103032611,-300.0,0.00030599,30]
[393930619,1763103032620,-300.0,0.00030599,30]
[393930621,1763103032629,-300.0,0.00030599,30]
[393930624,1763103032639,-1000.0,0.00030931,30]
[393930625,1763103032648,-943.2584986,0.00030979,2]
[393930628,1763103032658,-600.0,0.0003121,30]
[393930629,1763103032667,-645.45430469,0.000318,2]
[393930631,1763103032677,-196.91,0.00031886,2]
[393930633,1763103032686,-231.0,0.0003189,2]
[393930635,1763103032695,-168.0,0.00031996,2]
[393930636,1763103032704,-186.156,0.00032493,32]
[393930637,1763103032714,-182.58038317,0.00032644,2]
[393930638,1763103032727,-175.22523838,0.00032679,2]
[393930639,1763103032736,-560.0,0.00032958,2]
[393930640,1763103032745,-2240.0,0.00033096,3]
[393930641,1763103032756,-175.54453151,0.000332,117]
[393930642,1763103032766,-258.0,0.0003389,120]
[393930644,1763103032775,-501.89,0.00034222,2]
[393930646,1763103032784,-720.0,0.00034331,30]
[393930647,1763103032794,-500.0,0.00034393,5]
[393930649,1763103032806,-295.37,0.00034543,2]
[393930651,1763103032816,-500.0,0.000347,5]
[393930652,1763103032825,-500.0,0.000347,5]
[393930653,1763103032834,-214.54,0.00034789,2]
[393930654,1763103032846,-2161.0,0.00034889,2]
[393930655,1763103032856,-987.0,0.00034889,2]
[393930656,1763103032865,-629.0,0.00034889,2]
[393930657,1763103032874,-413.0,0.00034889,2]
[393930658,1763103032883,-500.0,0.00034941,5]
[393930659,1763103032892,-151.0,0.00035,120]
[393930660,1763103032902,-2385.75193158,0.00035154,2]
[393930661,1763103032911,-501.89,0.00035255,2]
[393930662,1763103032923,-783.0,0.00035499,2]
[393930663,1763103032933,-1000.0,0.00035616,2]
[393930664,1763103032943,-1000.0,0.00035616,2]
[393930665,1763103032952,-334.02373692,0.00035616,2]
[393930666,1763103032964,-541.11646766,0.00035616,2]
[393930667,1763103032976,-124.85979542,0.00035616,2]
[393930668,1763103032985,-1000.0,0.00035616,2]
[393930669,1763103032995,-735.20510236,0.00035616,2]
[393930676,1763103039300,-264.79489764,0.00035616,2]
[393930677,1763103039310,-878.44880247,0.00035616,2]
[393930678,1763103039344,-121.55119753,0.00035616,2]
[393930679,1763103039355,-1000.0,0.00035616,2]
[393930680,1763103039365,-1000.0,0.00035616,2]
[393930681,1763103039374,-1000.0,0.00035616,2]
[393930682,1763103039384,-610.07,0.00035616,2]
[393930683,1763103039393,-498.0,0.00035799,3]
[393930684,1763103039403,-285.0,0.0003589,120]
[393930685,1763103039412,-241.6930323,0.00036247,2]
[393930686,1763103039423,-616.8501178,0.00036247,2]
[393930687,1763103039432,-393.83,0.000372,2]
[393930688,1763103039442,-501.89,0.00037222,2]
[393930689,1763103039452,-645.45430469,0.00037497,2]
[393930690,1763103039461,-3451.91674177,0.00037613,2]
[393930691,1763103039471,-864.0,0.00037764,30]
[393930692,1763103039481,-200.30590283,0.00037858,15]
[393930693,1763103039490,-231.98478926,0.00037858,15]
[393930694,1763103039499,-1975.54,0.00037859,10]
[393930696,1763103039509,-2370.65,0.00037869,10]
[393930697,1763103039518,-2844.78,0.00037879,10]
[393930698,1763103039527,-2161.0,0.00037889,2]
[393930699,1763103039536,-987.0,0.00037889,2]
[393930700,1763103039546,-629.0,0.00037889,2]
[393930701,1763103039556,-413.0,0.00037889,2]
[393930702,1763103039565,-312.0,0.0003789,120]
[393930703,1763103039574,-3451.91674177,0.00037969,2]
[393930704,1763103039583,-1097.0,0.00038236,2]
[393930705,1763103039592,-3451.91674177,0.00038313,2]
[393930706,1763103039605,-3451.91674177,0.00038459,2]
[393930707,1763103039614,-2127.90858193,0.00038731,2]
[393930709,1763103039624,-3451.91674177,0.000388,2]
[393930712,1763103039732,-501.89,0.00038826,2]
[393930713,1763103039745,-500.0,0.00038973,5]
[393930714,1763103039754,-500.0,0.00038973,5]
[393930716,1763103039764,-153.68,0.0003898,3]
[393930717,1763103039774,-461.07,0.0003898,3]
[393930719,1763103039783,-11153.6358488,0.0003898,3]
[393930720,1763103039793,-2127.90858193,0.00038981,2]
[393930721,1763103039802,-29032.42333457,0.0003899,2]
[393930722,1763103039813,-3451.91674177,0.00039014,2]
[393930723,1763103039823,-175.54453147,0.00039125,120]
[393930724,1763103039832,-3451.91674177,0.00039261,2]
[393930725,1763103039843,-2127.90858193,0.00039402,2]
[393930726,1763103039854,-505.05635559,0.00039521,5]
[393930727,1763103039863,-756.33158381,0.00039525,2]
[393930728,1763103039873,-501.89,0.00039539,2]
[393930729,1763103039882,-150.0,0.00039573,5]
[393930730,1763103039891,-500.0,0.00039573,5]
[393930731,1763103039901,-500.0,0.00039573,5]
[393930732,1763103039911,-1646.29,0.0003959,10]
[393930733,1763103039921,-756.33158378,0.00039594,2]
[393930734,1763103039932,-205.31647299,0.000396,120]
[393930735,1763103039942,-160.78209113,0.000396,120]
[393930736,1763103039952,-956.92700086,0.000396,120]
[393930737,1763103039962,-166.26373964,0.000396,120]
[393930738,1763103039972,-76387.78611113,0.000396,20]
[393930739,1763103039982,-168.285344,0.000396,120]
[393930740,1763103039992,-151.0,0.000396,120]
[393930741,1763103040002,-171.4424,0.000396,2]
[393930742,1763103040013,-22307.2716976,0.00039615,3]
[393930743,1763103040022,-152.618291,0.00039625,120]
[393930744,1763103040032,-151.0,0.00039625,120]
[393930745,1763103040042,-154.936195,0.00039625,120]
[393930746,1763103040051,-151.0,0.00039625,120]
[393930747,1763103040060,-78862.0,0.00039625,2]
[393930748,1763103040070,-151.0,0.00039625,120]
[393930749,1763103040079,-151.0,0.00039625,120]
[393930750,1763103040089,-151.0,0.00039625,28]
[393930751,1763103040099,-154.411379,0.00039625,120]
[393930752,1763103040108,-151.0,0.00039625,120]
[393930753,1763103040118,-151.0,0.00039625,120]
[393930754,1763103040127,-256.144297,0.00039625,120]
[393930755,1763103040138,-151.0,0.00039625,120]
[393930756,1763103040147,-151.0,0.00039625,120]
[393930757,1763103040157,-151.0,0.00039625,120]
[393930758,1763103040167,-151.0,0.00039625,7]
[393930759,1763103040176,-151.0,0.00039625,7]
[393930760,1763103040185,-1000.0,0.00039625,2]
[393930761,1763103040195,-151.0,0.00039625,120]
[393930762,1763103040204,-460.05,0.00039625,2]
[393930763,1763103040213,-151.0,0.00039625,120]
[393930764,1763103040223,-151.0,0.00039625,30]
[393930765,1763103040232,-151.0,0.00039625,30]
[393930766,1763103040241,-151.0,0.00039625,30]
[393930767,1763103040250,-151.0,0.00039625,30]
[393930768,1763103040260,-151.0,0.00039625,30]
[393930769,1763103040269,-151.0,0.00039625,30]
[393930770,1763103040279,-151.0,0.00039625,120]
[393930771,1763103040288,-151.0,0.00039625,120]
[393930772,1763103040297,-151.0,0.00039625,120]
[393930773,1763103040306,-239.714731,0.00039625,120]
[393930774,1763103040315,-154.709272,0.00039625,120]
[393930775,1763103040324,-391.533196,0.00039625,120]
[393930776,1763103040334,-391.533196,0.00039625,120]
[393930777,1763103040343,-391.533196,0.00039625,120]
[393930778,1763103040353,-391.533196,0.00039625,120]
[393930779,1763103040362,-391.533196,0.00039625,120]
[393930780,1763103040371,-391.533196,0.00039625,120]
[393930781,1763103040380,-391.533196,0.00039625,120]
[393930782,1763103040390,-501.89,0.00039625,2]
[393930783,1763103040399,-501.89,0.00039625,2]
[393930784,1763103040409,-501.89,0.00039625,2]
[393930785,1763103040418,-391.533196,0.00039625,120]
[393930786,1763103040428,-501.89,0.00039625,2]
[393930787,1763103040437,-391.533196,0.00039625,120]
[393930788,1763103040447,-501.89,0.00039625,2]
[393930789,1763103040457,-501.89,0.00039625,2]
[393930790,1763103040466,-501.89,0.00039625,2]
[393930791,1763103040476,-501.89,0.00039625,2]
[393930792,1763103040486,-501.89,0.00039625,2]
[393930793,1763103040496,-501.89,0.00039625,2]
[393930794,1763103040506,-391.533196,0.00039625,120]
[393930795,1763103040516,-391.533196,0.00039625,120]
[393930796,1763103040526,-501.89,0.00039625,2]
[393930797,1763103040535,-391.533196,0.00039625,120]
[393930798,1763103040544,-2000.0,0.00039625,20]